[Event "*** Titled Tuesday Blitz"]
[Site "Chess.com"]
[Date "2020.05.26"]
[Round "6"]
[White "thedjoker98"]
[Black "MNyuyu"]
[Result "0-1"]
[WhiteElo "2469"]
[BlackElo "2321"]
[TimeControl "180+1"]
[EndTime "11:08:34 PDT"]
[Termination "MNyuyu won by resignation"]

1. d4 {[%clk 0:03:00.9]} 1... d5 {[%clk 0:02:59.6]} 2. c4 {[%clk 0:02:53.5]}
2... e6 {[%clk 0:02:59.4]} 3. Nc3 {[%clk 0:02:53.2]} 3... Be7 {[%clk 0:02:59]}
4. cxd5 {[%clk 0:02:44.8]} 4... exd5 {[%clk 0:02:58.4]} 5. Bf4 {[%clk
0:02:45.7]} 5... c6 {[%clk 0:02:58.1]} 6. e3 {[%clk 0:02:45.2]} 6... Bf5 {[%clk
0:02:55.8]} 7. g4 {[%clk 0:02:43.8]} 7... Be6 {[%clk 0:02:55.3]} 8. Qb3 {[%clk
0:02:43.9]} 8... Qb6 {[%clk 0:02:53.4]} 9. f3 {[%clk 0:02:42.6]} 9... Nd7 {[%clk
0:02:52.5]} 10. h4 {[%clk 0:02:40.9]} 10... h6 {[%clk 0:02:49.8]} 11. Bd3 {[%clk
0:02:35.4]} 11... Ngf6 {[%clk 0:02:47.7]} 12. Nge2 {[%clk 0:02:16]} 12... Qxb3
{[%clk 0:02:44.8]} 13. axb3 {[%clk 0:02:05]} 13... a6 {[%clk 0:02:44.6]} 14. Bg3
{[%clk 0:02:01.5]} 14... Rc8 {[%clk 0:02:43.7]} 15. Nf4 {[%clk 0:02:00.9]} 15...
Nf8 {[%clk 0:02:36.9]} 16. Kf2 {[%clk 0:01:59.2]} 16... Bd7 {[%clk 0:02:35.9]}
17. Na4 {[%clk 0:01:58.1]} 17... Ne6 {[%clk 0:02:32.1]} 18. Nb6 {[%clk
0:01:51.6]} 18... Rd8 {[%clk 0:02:31.2]} 19. Nxe6 {[%clk 0:01:51.2]} 19... Bxe6
{[%clk 0:02:30.4]} 20. Bc7 {[%clk 0:01:51.4]} 20... O-O {[%clk 0:02:26.7]} 21.
Bxd8 {[%clk 0:01:51.3]} 21... Bxd8 {[%clk 0:02:26.1]} 22. Na4 {[%clk 0:01:51.3]}
22... Bc7 {[%clk 0:02:25.5]} 23. Nc5 {[%clk 0:01:50.4]} 23... Bc8 {[%clk
0:02:25.1]} 24. g5 {[%clk 0:01:46.1]} 24... Nd7 {[%clk 0:02:11.2]} 25. b4 {[%clk
0:01:40.3]} 25... Nxc5 {[%clk 0:02:08.5]} 26. bxc5 {[%clk 0:01:40]} 26... h5
{[%clk 0:02:04.1]} 27. Rhg1 {[%clk 0:01:35.6]} 27... g6 {[%clk 0:02:03.5]} 28.
f4 {[%clk 0:01:34.9]} 28... Re8 {[%clk 0:02:01.4]} 29. b4 {[%clk 0:01:32]} 29...
Re7 {[%clk 0:01:59.4]} 30. Raf1 {[%clk 0:01:29.8]} 30... Bg4 {[%clk 0:01:53.5]}
31. Rg3 {[%clk 0:01:27.2]} 31... Kg7 {[%clk 0:01:45.4]} 32. Ke1 {[%clk
0:01:26.9]} 32... a5 {[%clk 0:01:42.5]} 33. bxa5 {[%clk 0:01:21.4]} 33... Bxa5+
{[%clk 0:01:41.9]} 34. Kf2 {[%clk 0:01:22.3]} 34... Bd2 {[%clk 0:01:41.4]} 35.
Rb1 {[%clk 0:01:18.2]} 35... f6 {[%clk 0:01:35.1]} 36. gxf6+ {[%clk 0:01:12.8]}
36... Kxf6 {[%clk 0:01:34.6]} 37. Be2 {[%clk 0:01:13.7]} 37... Bf5 {[%clk
0:01:30.8]} 38. Rb3 {[%clk 0:01:08.9]} 38... Rd7 {[%clk 0:01:25.1]} 39. Bd3
{[%clk 0:01:07.9]} 39... Bg4 {[%clk 0:01:21.4]} 40. Rg1 {[%clk 0:01:07.4]} 40...
Re7 {[%clk 0:01:20.3]} 41. Bc2 {[%clk 0:01:07.1]} 41... Kg7 {[%clk 0:01:08.7]}
42. Rgb1 {[%clk 0:01:05.1]} 42... Kf6 {[%clk 0:01:07.3]} 43. Rh1 {[%clk
0:00:51.5]} 43... Bc8 {[%clk 0:01:03.8]} 44. Rg1 {[%clk 0:00:49.5]} 44... Bg4
{[%clk 0:01:02.9]} 45. Rh1 {[%clk 0:00:48.1]} 45... Rd7 {[%clk 0:00:57.2]} 46.
Bd1 {[%clk 0:00:40.1]} 46... Bf5 {[%clk 0:00:55.9]} 47. Bf3 {[%clk 0:00:39.9]}
47... Re7 {[%clk 0:00:55.1]} 48. Rhb1 {[%clk 0:00:40.2]} 48... Bxb1 {[%clk
0:00:53.6]} 49. Rxb1 {[%clk 0:00:39.7]} 49... Bxe3+ {[%clk 0:00:53.3]} 50. Kg3
{[%clk 0:00:40.1]} 50... Bxd4 {[%clk 0:00:53]} 51. f5 {[%clk 0:00:37.7]} 51...
Bxc5 {[%clk 0:00:52]} 52. fxg6 {[%clk 0:00:37.5]} 52... Kxg6 {[%clk 0:00:51.7]}
53. Kf4 {[%clk 0:00:36.9]} 53... Kf6 {[%clk 0:00:50.3]} 54. Bxh5 {[%clk
0:00:36.3]} 54... Re4+ {[%clk 0:00:49.6]} 55. Kg3 {[%clk 0:00:34.1]} 55... Bd6+
{[%clk 0:00:47.6]} 56. Kh3 {[%clk 0:00:32.9]} 56... b5 {[%clk 0:00:47.1]} 57.
Rf1+ {[%clk 0:00:28.8]} 57... Rf4 {[%clk 0:00:46]} 58. Rxf4+ {[%clk 0:00:28.4]}
58... Bxf4 {[%clk 0:00:45.2]} 59. Be8 {[%clk 0:00:29.3]} 59... c5 {[%clk
0:00:43.2]} 60. Bxb5 {[%clk 0:00:29.2]} 60... Ke5 {[%clk 0:00:42.9]} 61. Kg4
{[%clk 0:00:28.8]} 61... Bd2 {[%clk 0:00:42]} 62. Kf3 {[%clk 0:00:29.1]} 62...
Kd4 {[%clk 0:00:41.5]} 63. Ke2 {[%clk 0:00:28.1]} 63... Bh6 {[%clk 0:00:40.3]}
64. h5 {[%clk 0:00:28.4]} 64... c4 {[%clk 0:00:39.7]} 65. Bc6 {[%clk 0:00:27.5]}
65... Kc5 {[%clk 0:00:39]} 66. Bb7 {[%clk 0:00:27.8]} 66... d4 {[%clk
0:00:38.5]} 67. Be4 {[%clk 0:00:27.9]} 67... Kb4 {[%clk 0:00:38]} 68. Kd1 {[%clk
0:00:27.7]} 68... Kc3 {[%clk 0:00:37.5]} 69. Bh7 {[%clk 0:00:25.6]} 69... d3
{[%clk 0:00:36.9]} 70. Bg8 {[%clk 0:00:25.4]} 70... Kd4 {[%clk 0:00:36.3]} 71.
Bf7 {[%clk 0:00:25.8]} 71... c3 {[%clk 0:00:36]} 72. Bb3 {[%clk 0:00:25.8]}
72... Kc5 {[%clk 0:00:34.1]} 73. Bc2 {[%clk 0:00:25.8]} 73... dxc2+ {[%clk
0:00:33]} 74. Kxc2 {[%clk 0:00:26.7]} 74... Kc4 {[%clk 0:00:33]} 0-1

[Event "*** Titled Tuesday Blitz"]
[Site "Chess.com"]
[Date "2020.05.26"]
[Round "6"]
[White "moistketchup"]
[Black "mohamed-damaj"]
[Result "1-0"]
[WhiteElo "2167"]
[BlackElo "2280"]
[TimeControl "180+1"]
[EndTime "11:08:34 PDT"]
[Termination "moistketchup won by resignation"]

1. d4 {[%clk 0:02:46.8]} 1... Nf6 {[%clk 0:02:59.4]} 2. c4 {[%clk 0:02:47]} 2...
e6 {[%clk 0:02:59.6]} 3. Nc3 {[%clk 0:02:47.6]} 3... d5 {[%clk 0:02:59.3]} 4.
cxd5 {[%clk 0:02:46.8]} 4... exd5 {[%clk 0:02:59]} 5. Bg5 {[%clk 0:02:46.6]}
5... Be7 {[%clk 0:02:54.6]} 6. e3 {[%clk 0:02:45]} 6... O-O {[%clk 0:02:53]} 7.
Bd3 {[%clk 0:02:44.9]} 7... c6 {[%clk 0:02:51.9]} 8. Qc2 {[%clk 0:02:42.9]} 8...
h6 {[%clk 0:02:51.6]} 9. Bh4 {[%clk 0:02:42]} 9... a5 {[%clk 0:02:39.7]} 10. Nf3
{[%clk 0:02:40.1]} 10... Na6 {[%clk 0:02:39.4]} 11. a3 {[%clk 0:02:39.5]} 11...
Nc7 {[%clk 0:02:38.7]} 12. Ne5 {[%clk 0:02:36.5]} 12... Ng4 {[%clk 0:02:27.6]}
13. Bxe7 {[%clk 0:02:08.4]} 13... Qxe7 {[%clk 0:02:26.4]} 14. Nxg4 {[%clk
0:02:09.3]} 14... Bxg4 {[%clk 0:02:24.9]} 15. h3 {[%clk 0:02:10]} 15... Bd7
{[%clk 0:02:21.1]} 16. g4 {[%clk 0:02:02.1]} 16... Rfe8 {[%clk 0:02:14.1]} 17.
O-O-O {[%clk 0:01:56.6]} 17... b5 {[%clk 0:02:13.6]} 18. Ne2 {[%clk 0:01:43.4]}
18... a4 {[%clk 0:02:08.9]} 19. Ng3 {[%clk 0:01:07.7]} 19... b4 {[%clk
0:02:05.8]} 20. axb4 {[%clk 0:01:07]} 20... Qxb4 {[%clk 0:01:56.7]} 21. Qc3
{[%clk 0:01:00.7]} 21... Qb7 {[%clk 0:01:28.3]} 22. g5 {[%clk 0:00:42.4]} 22...
hxg5 {[%clk 0:01:16.5]} 23. h4 {[%clk 0:00:43]} 23... g4 {[%clk 0:01:04]} 24. h5
{[%clk 0:00:43.4]} 24... a3 {[%clk 0:00:37.3]} 25. bxa3 {[%clk 0:00:37.3]} 25...
Nb5 {[%clk 0:00:30.8]} 26. Bxb5 {[%clk 0:00:35.1]} 26... Qxb5 {[%clk 0:00:25.7]}
27. Kd2 {[%clk 0:00:30.8]} 27... Ra4 {[%clk 0:00:19.5]} 28. Rb1 {[%clk
0:00:30.1]} 28... Qa6 {[%clk 0:00:19.4]} 29. Rb3 {[%clk 0:00:25.7]} 29... Ra8
{[%clk 0:00:18.5]} 30. Ra1 {[%clk 0:00:20.7]} 30... Rc4 {[%clk 0:00:17.7]} 31.
Qb2 {[%clk 0:00:20.4]} 31... Qa5+ {[%clk 0:00:17.4]} 32. Ke2 {[%clk 0:00:19.4]}
32... Qa6 {[%clk 0:00:16.7]} 33. Ke1 {[%clk 0:00:18.5]} 33... Qa5+ {[%clk
0:00:16.2]} 34. Kf1 {[%clk 0:00:18.6]} 34... Qd8 {[%clk 0:00:13.9]} 35. Kg2
{[%clk 0:00:17.8]} 35... Qf6 {[%clk 0:00:11.6]} 36. Rb8+ {[%clk 0:00:15.6]}
36... Rxb8 {[%clk 0:00:11.6]} 37. Qxb8+ {[%clk 0:00:16.5]} 37... Kh7 {[%clk
0:00:11.9]} 38. Qb1+ {[%clk 0:00:15.5]} 38... g6 {[%clk 0:00:10]} 39. hxg6+
{[%clk 0:00:14.7]} 39... fxg6 {[%clk 0:00:10.6]} 40. Qd1 {[%clk 0:00:13.9]}
40... Kg7 {[%clk 0:00:08.3]} 41. Qe2 {[%clk 0:00:12.3]} 41... Bc8 {[%clk
0:00:06.7]} 42. a4 {[%clk 0:00:12.1]} 42... Qf3+ {[%clk 0:00:04.6]} 43. Qxf3
{[%clk 0:00:11.7]} 43... gxf3+ {[%clk 0:00:05.5]} 44. Kxf3 {[%clk 0:00:12.4]}
44... Ba6 {[%clk 0:00:05.5]} 45. a5 {[%clk 0:00:12]} 45... Rc2 {[%clk
0:00:05.4]} 46. Nf1 {[%clk 0:00:09.6]} 46... Bxf1 {[%clk 0:00:04.1]} 47. Rxf1
{[%clk 0:00:10.1]} 47... Ra2 {[%clk 0:00:04.6]} 48. Rc1 {[%clk 0:00:10.7]} 48...
Rxa5 {[%clk 0:00:04.9]} 49. Rxc6 {[%clk 0:00:11.3]} 49... Kf7 {[%clk 0:00:05.1]}
50. Rd6 {[%clk 0:00:10.8]} 50... Rb5 {[%clk 0:00:04.2]} 51. Kg4 {[%clk
0:00:10.7]} 51... Rb2 {[%clk 0:00:04.4]} 52. Kg3 {[%clk 0:00:10.6]} 52... Rb5
{[%clk 0:00:04.1]} 53. Kf4 {[%clk 0:00:10.4]} 53... Rb2 {[%clk 0:00:03.1]} 54.
f3 {[%clk 0:00:10.3]} 54... Rh2 {[%clk 0:00:03.4]} 55. Rxd5 {[%clk 0:00:10]}
55... Rh4+ {[%clk 0:00:04.2]} 56. Kg3 {[%clk 0:00:10.1]} 56... Ke7 {[%clk
0:00:04]} 57. Kxh4 {[%clk 0:00:09.5]} 1-0

[Event "*** Titled Tuesday Blitz"]
[Site "Chess.com"]
[Date "2020.05.26"]
[Round "6"]
[White "Alexander_Donchenko"]
[Black "Superfelix"]
[Result "1-0"]
[WhiteElo "2708"]
[BlackElo "2478"]
[TimeControl "180+1"]
[EndTime "11:08:35 PDT"]
[Termination "Alexander_Donchenko won by resignation"]

1. e4 {[%clk 0:03:00.9]} 1... c6 {[%clk 0:02:59.6]} 2. d4 {[%clk 0:03:00.6]}
2... g6 {[%clk 0:02:59.5]} 3. Ke2 {[%clk 0:02:51.8]} 3... d5 {[%clk 0:02:58.9]}
4. e5 {[%clk 0:02:46.5]} 4... c5 {[%clk 0:02:51.9]} 5. c3 {[%clk 0:02:45.9]}
5... Nc6 {[%clk 0:02:51.5]} 6. f4 {[%clk 0:02:44.1]} 6... h5 {[%clk 0:02:48.4]}
7. Kf2 {[%clk 0:02:42.2]} 7... Nh6 {[%clk 0:02:45.6]} 8. Nf3 {[%clk 0:02:39.4]}
8... Bg4 {[%clk 0:02:40.7]} 9. Be3 {[%clk 0:02:36.3]} 9... Nf5 {[%clk
0:02:39.3]} 10. Bb5 {[%clk 0:02:30.6]} 10... Qb6 {[%clk 0:02:32]} 11. Qa4 {[%clk
0:02:12.6]} 11... Bxf3 {[%clk 0:02:23]} 12. Kxf3 {[%clk 0:02:09.5]} 12... Nxe3
{[%clk 0:02:17.5]} 13. Kxe3 {[%clk 0:02:08.7]} 13... e6 {[%clk 0:02:14.7]} 14.
Nd2 {[%clk 0:02:00.7]} 14... a6 {[%clk 0:02:07.7]} 15. Bxc6+ {[%clk 0:01:59.2]}
15... bxc6 {[%clk 0:02:08.5]} 16. Nb3 {[%clk 0:01:50.9]} 16... c4 {[%clk
0:02:05.4]} 17. Na5 {[%clk 0:01:50.8]} 17... Kd7 {[%clk 0:02:02.4]} 18. b3
{[%clk 0:01:45.4]} 18... Qb5 {[%clk 0:01:53.7]} 19. Rhb1 {[%clk 0:01:12.3]}
19... Be7 {[%clk 0:01:40.8]} 20. Qxb5 {[%clk 0:00:40.4]} 20... axb5 {[%clk
0:01:36.7]} 21. b4 {[%clk 0:00:40.6]} 21... Rhb8 {[%clk 0:01:13.3]} 22. a4
{[%clk 0:00:39.5]} 22... Bd8 {[%clk 0:01:08.6]} 23. axb5 {[%clk 0:00:38.6]}
23... cxb5 {[%clk 0:01:02.6]} 24. Nb7 {[%clk 0:00:36.5]} 24... Bb6 {[%clk
0:00:51.3]} 25. Nd6 {[%clk 0:00:33.2]} 25... f5 {[%clk 0:00:49.6]} 26. Nxb5
{[%clk 0:00:28.8]} 26... Kc6 {[%clk 0:00:44.8]} 27. Nd6 {[%clk 0:00:28.1]} 27...
Bc7 {[%clk 0:00:44.6]} 28. Nf7 {[%clk 0:00:26.3]} 28... Kd7 {[%clk 0:00:37.6]}
29. Ng5 {[%clk 0:00:21.2]} 29... Bd8 {[%clk 0:00:36.4]} 30. Nf3 {[%clk
0:00:20.9]} 30... Kc6 {[%clk 0:00:31.5]} 31. Kd2 {[%clk 0:00:20.4]} 31... Kb5
{[%clk 0:00:31.5]} 32. Kc2 {[%clk 0:00:21]} 32... Be7 {[%clk 0:00:30.9]} 33. Kb2
{[%clk 0:00:20.1]} 33... h4 {[%clk 0:00:24.6]} 34. Kc2 {[%clk 0:00:19]} 34...
Bd8 {[%clk 0:00:22.9]} 35. Kb2 {[%clk 0:00:14]} 35... Be7 {[%clk 0:00:22.6]} 36.
Rxa8 {[%clk 0:00:13.6]} 36... Rxa8 {[%clk 0:00:22.5]} 37. Ra1 {[%clk 0:00:14.5]}
37... Rxa1 {[%clk 0:00:21.8]} 38. Kxa1 {[%clk 0:00:15.4]} 38... Ka4 {[%clk
0:00:19.3]} 39. Kb2 {[%clk 0:00:15.6]} 39... Bd8 {[%clk 0:00:18.8]} 40. Ng5
{[%clk 0:00:11.1]} 40... Bxg5 {[%clk 0:00:18.4]} 41. fxg5 {[%clk 0:00:12]} 41...
Kb5 {[%clk 0:00:18.5]} 42. Kc2 {[%clk 0:00:12.6]} 42... Ka4 {[%clk 0:00:18.5]}
43. Kd2 {[%clk 0:00:12.9]} 43... Kb5 {[%clk 0:00:17.8]} 44. Ke3 {[%clk
0:00:13.3]} 44... Ka4 {[%clk 0:00:18.2]} 45. Kf4 {[%clk 0:00:13.6]} 45... Kb3
{[%clk 0:00:18.4]} 46. b5 {[%clk 0:00:13.3]} 46... Kxc3 {[%clk 0:00:18.7]} 47.
b6 {[%clk 0:00:14.2]} 47... Kd2 {[%clk 0:00:16.9]} 48. b7 {[%clk 0:00:15.1]}
48... c3 {[%clk 0:00:17]} 49. b8=Q {[%clk 0:00:16]} 49... c2 {[%clk 0:00:17.9]}
50. Qb2 {[%clk 0:00:16.3]} 50... Kd1 {[%clk 0:00:17.7]} 51. Qb3 {[%clk
0:00:15.5]} 51... Kd2 {[%clk 0:00:17.6]} 52. Qe3+ {[%clk 0:00:15.6]} 52... Kd1
{[%clk 0:00:17.6]} 53. Qd3+ {[%clk 0:00:16.2]} 53... Kc1 {[%clk 0:00:17.3]} 54.
Ke3 {[%clk 0:00:16.7]} 54... Kb2 {[%clk 0:00:17.4]} 55. Qd2 {[%clk 0:00:15.6]}
55... Kb1 {[%clk 0:00:17.6]} 56. Qb4+ {[%clk 0:00:15.7]} 56... Ka1 {[%clk
0:00:17.9]} 57. Qc3+ {[%clk 0:00:14.6]} 57... Kb1 {[%clk 0:00:18.1]} 58. Qb3+
{[%clk 0:00:15]} 58... Ka1 {[%clk 0:00:18.1]} 59. Qxc2 {[%clk 0:00:14.8]} 59...
h3 {[%clk 0:00:18.1]} 60. Kd3 {[%clk 0:00:15.1]} 60... hxg2 {[%clk 0:00:17.6]}
61. Kc3 {[%clk 0:00:15.2]} 1-0

[Event "*** Titled Tuesday Blitz"]
[Site "Chess.com"]
[Date "2020.05.26"]
[Round "6"]
[White "BEEkhishig"]
[Black "TenisMaster"]
[Result "1/2-1/2"]
[WhiteElo "2613"]
[BlackElo "2813"]
[TimeControl "180+1"]
[EndTime "11:08:38 PDT"]
[Termination "Game drawn - timeout vs insufficient material"]

1. c4 {[%clk 0:03:00.9]} 1... e5 {[%clk 0:02:59.2]} 2. Nc3 {[%clk 0:03:00.5]}
2... Nf6 {[%clk 0:02:58.4]} 3. g3 {[%clk 0:03:00.9]} 3... Nc6 {[%clk 0:02:57.3]}
4. Bg2 {[%clk 0:03:01.1]} 4... Bb4 {[%clk 0:02:56.4]} 5. Nf3 {[%clk 0:03:01.2]}
5... O-O {[%clk 0:02:54.3]} 6. O-O {[%clk 0:03:00.9]} 6... d6 {[%clk 0:02:54.5]}
7. d3 {[%clk 0:02:58.8]} 7... h6 {[%clk 0:02:54.5]} 8. Bd2 {[%clk 0:02:57.1]}
8... a5 {[%clk 0:02:38.5]} 9. a3 {[%clk 0:02:56.3]} 9... Bc5 {[%clk 0:02:38.7]}
10. Rb1 {[%clk 0:02:55.9]} 10... Be6 {[%clk 0:02:35.4]} 11. e4 {[%clk
0:02:26.3]} 11... Bg4 {[%clk 0:02:16.4]} 12. h3 {[%clk 0:02:24.8]} 12... Bxf3
{[%clk 0:02:16.2]} 13. Bxf3 {[%clk 0:02:25.7]} 13... Nd4 {[%clk 0:02:16.7]} 14.
Bg2 {[%clk 0:02:22]} 14... c6 {[%clk 0:02:16.8]} 15. Kh2 {[%clk 0:02:15.7]}
15... b5 {[%clk 0:02:16.5]} 16. cxb5 {[%clk 0:02:11.6]} 16... cxb5 {[%clk
0:02:17.4]} 17. Ne2 {[%clk 0:02:11.9]} 17... a4 {[%clk 0:02:10.9]} 18. Bc3
{[%clk 0:02:01]} 18... Qb6 {[%clk 0:02:09.5]} 19. f4 {[%clk 0:01:55.2]} 19...
Nxe2 {[%clk 0:01:49.5]} 20. Qxe2 {[%clk 0:01:52.8]} 20... Bd4 {[%clk 0:01:50.4]}
21. Rbc1 {[%clk 0:01:40]} 21... Rac8 {[%clk 0:01:48.5]} 22. fxe5 {[%clk
0:01:19.9]} 22... dxe5 {[%clk 0:01:47.3]} 23. Bxd4 {[%clk 0:01:11.7]} 23... Qxd4
{[%clk 0:01:46.2]} 24. Rxc8 {[%clk 0:01:01.5]} 24... Rxc8 {[%clk 0:01:44.2]} 25.
Rxf6 {[%clk 0:01:01.3]} 25... Rc1 {[%clk 0:01:34.5]} 26. Rf2 {[%clk 0:00:58.7]}
26... b4 {[%clk 0:01:29.9]} 27. axb4 {[%clk 0:00:57.5]} 27... Qxb4 {[%clk
0:01:30.8]} 28. Qf3 {[%clk 0:00:57.8]} 28... Rc7 {[%clk 0:01:29]} 29. h4 {[%clk
0:00:56.2]} 29... Qd4 {[%clk 0:01:17.1]} 30. Bh3 {[%clk 0:00:54.4]} 30... Rb7
{[%clk 0:01:14.6]} 31. Qe2 {[%clk 0:00:50.4]} 31... h5 {[%clk 0:01:10.4]} 32.
Kg2 {[%clk 0:00:46.5]} 32... g6 {[%clk 0:01:08.9]} 33. Qc2 {[%clk 0:00:45.3]}
33... Kg7 {[%clk 0:01:06.7]} 34. g4 {[%clk 0:00:38.1]} 34... hxg4 {[%clk
0:00:46.8]} 35. Bxg4 {[%clk 0:00:39]} 35... Qd8 {[%clk 0:00:35.1]} 36. Qc6
{[%clk 0:00:33]} 36... Qxh4 {[%clk 0:00:28]} 37. Bh3 {[%clk 0:00:26.3]} 37...
Qg5+ {[%clk 0:00:27]} 38. Kh2 {[%clk 0:00:25.6]} 38... Qe3 {[%clk 0:00:25.7]}
39. Qf6+ {[%clk 0:00:24]} 39... Kg8 {[%clk 0:00:25.1]} 40. Be6 {[%clk
0:00:18.1]} 40... Qh6+ {[%clk 0:00:23.9]} 41. Bh3 {[%clk 0:00:16.5]} 41... Qe3
{[%clk 0:00:20.9]} 42. Rg2 {[%clk 0:00:16.6]} 42... Qxd3 {[%clk 0:00:17.6]} 43.
Be6 {[%clk 0:00:13.4]} 43... Qxe4 {[%clk 0:00:09.8]} 44. Qxg6+ {[%clk 0:00:10]}
44... Qxg6 {[%clk 0:00:07.5]} 45. Rxg6+ {[%clk 0:00:10.9]} 45... Kf8 {[%clk
0:00:07.8]} 46. Bd5 {[%clk 0:00:09.4]} 46... Rxb2+ {[%clk 0:00:06.7]} 47. Rg2
{[%clk 0:00:08.6]} 47... a3 {[%clk 0:00:06.8]} 48. Rxb2 {[%clk 0:00:07.5]} 48...
axb2 {[%clk 0:00:06.8]} 49. Ba2 {[%clk 0:00:08.4]} 49... Ke7 {[%clk 0:00:07.1]}
50. Kg3 {[%clk 0:00:08.6]} 50... f5 {[%clk 0:00:07.1]} 51. Kf3 {[%clk
0:00:08.7]} 51... Kd6 {[%clk 0:00:06.7]} 52. Ke3 {[%clk 0:00:08.9]} 52... f4+
{[%clk 0:00:04.3]} 53. Ke4 {[%clk 0:00:08.7]} 53... Kc5 {[%clk 0:00:04.4]} 54.
Kd3 {[%clk 0:00:08.8]} 54... f3 {[%clk 0:00:04]} 55. Ke3 {[%clk 0:00:07.8]}
55... e4 {[%clk 0:00:04.4]} 56. Bb1 {[%clk 0:00:08]} 56... Kb4 {[%clk
0:00:01.2]} 57. Bxe4 {[%clk 0:00:07.1]} 1/2-1/2

[Event "*** Titled Tuesday Blitz"]
[Site "Chess.com"]
[Date "2020.05.26"]
[Round "6"]
[White "AttilaTurzo"]
[Black "Colombiano07"]
[Result "0-1"]
[WhiteElo "2432"]
[BlackElo "2278"]
[TimeControl "180+1"]
[EndTime "11:08:38 PDT"]
[Termination "Colombiano07 won on time"]

1. e4 {[%clk 0:03:00.9]} 1... c5 {[%clk 0:02:58.9]} 2. Nf3 {[%clk 0:03:00.6]}
2... g6 {[%clk 0:02:58.7]} 3. d4 {[%clk 0:03:01.5]} 3... cxd4 {[%clk 0:02:57.6]}
4. Nxd4 {[%clk 0:03:02.4]} 4... Nf6 {[%clk 0:02:58.1]} 5. Nc3 {[%clk 0:03:00.2]}
5... Nc6 {[%clk 0:02:58.7]} 6. Nxc6 {[%clk 0:02:58.7]} 6... dxc6 {[%clk
0:02:59.6]} 7. Qxd8+ {[%clk 0:02:54.3]} 7... Kxd8 {[%clk 0:03:00.5]} 8. Bg5
{[%clk 0:02:47.6]} 8... Be6 {[%clk 0:02:59.8]} 9. O-O-O+ {[%clk 0:02:47.5]} 9...
Ke8 {[%clk 0:03:00.3]} 10. f4 {[%clk 0:02:37.6]} 10... Bg7 {[%clk 0:02:43.7]}
11. Be2 {[%clk 0:02:30]} 11... Rd8 {[%clk 0:02:39.2]} 12. Bf3 {[%clk 0:02:17]}
12... Rd7 {[%clk 0:02:21.8]} 13. h3 {[%clk 0:02:12.7]} 13... Kd8 {[%clk
0:02:20.3]} 14. e5 {[%clk 0:02:08.4]} 14... Nd5 {[%clk 0:02:17]} 15. Nxd5 {[%clk
0:01:57.3]} 15... Bxd5 {[%clk 0:02:16.5]} 16. Bxd5 {[%clk 0:01:50.8]} 16... Rxd5
{[%clk 0:02:17.4]} 17. Rxd5+ {[%clk 0:01:48.4]} 17... cxd5 {[%clk 0:02:18.3]}
18. Rd1 {[%clk 0:01:48.5]} 18... f6 {[%clk 0:01:51]} 19. Rxd5+ {[%clk
0:01:44.9]} 19... Kc7 {[%clk 0:01:51.5]} 20. exf6 {[%clk 0:01:39.9]} 20... exf6
{[%clk 0:01:52.4]} 21. Bh4 {[%clk 0:01:38.1]} 21... Re8 {[%clk 0:01:33]} 22. Kd2
{[%clk 0:01:36.7]} 22... Kc6 {[%clk 0:01:30.6]} 23. Rd3 {[%clk 0:01:31.3]} 23...
Re4 {[%clk 0:01:28]} 24. Rf3 {[%clk 0:01:19.9]} 24... f5 {[%clk 0:01:24.3]} 25.
c3 {[%clk 0:01:15.7]} 25... b5 {[%clk 0:01:21.7]} 26. Bf2 {[%clk 0:01:14.2]}
26... a5 {[%clk 0:01:20.1]} 27. b3 {[%clk 0:01:10]} 27... b4 {[%clk 0:01:16.1]}
28. c4 {[%clk 0:01:06]} 28... a4 {[%clk 0:01:16.3]} 29. g3 {[%clk 0:01:02.4]}
29... axb3 {[%clk 0:01:13.5]} 30. axb3 {[%clk 0:01:03.3]} 30... Bc3+ {[%clk
0:01:11.8]} 31. Kd3 {[%clk 0:00:57.3]} 31... Re8 {[%clk 0:01:09.4]} 32. Be3
{[%clk 0:00:51.9]} 32... Rd8+ {[%clk 0:01:06.9]} 33. Kc2 {[%clk 0:00:49.2]}
33... Ra8 {[%clk 0:01:07.8]} 34. Bc1 {[%clk 0:00:24.4]} 34... Ra2+ {[%clk
0:01:04.9]} 35. Kd3 {[%clk 0:00:23.4]} 35... Ra1 {[%clk 0:01:02.8]} 36. Bd2
{[%clk 0:00:21.3]} 36... Rd1 {[%clk 0:00:56.7]} 37. Rf2 {[%clk 0:00:20.9]} 37...
Rg1 {[%clk 0:00:57.2]} 38. Bxc3 {[%clk 0:00:18.3]} 38... Rxg3+ {[%clk
0:00:56.3]} 39. Kd4 {[%clk 0:00:18.6]} 39... Rxc3 {[%clk 0:00:53]} 40. Re2
{[%clk 0:00:16.9]} 40... Rxb3 {[%clk 0:00:53.2]} 41. Re6+ {[%clk 0:00:16.1]}
41... Kd7 {[%clk 0:00:51.2]} 42. Rb6 {[%clk 0:00:15]} 42... Rf3 {[%clk
0:00:51.1]} 43. Rxb4 {[%clk 0:00:14.2]} 43... Rxf4+ {[%clk 0:00:51.1]} 44. Kd5
{[%clk 0:00:14.8]} 44... Rh4 {[%clk 0:00:46.7]} 45. Rb3 {[%clk 0:00:13.5]} 45...
Kc7 {[%clk 0:00:43.3]} 46. Ra3 {[%clk 0:00:12.8]} 46... f4 {[%clk 0:00:41.4]}
47. c5 {[%clk 0:00:11.4]} 47... Rh5+ {[%clk 0:00:41.7]} 48. Ke4 {[%clk
0:00:11.5]} 48... Rf5 {[%clk 0:00:39.3]} 49. Rf3 {[%clk 0:00:11.4]} 49... Rxc5
{[%clk 0:00:36.2]} 50. Rxf4 {[%clk 0:00:10.2]} 50... Rc4+ {[%clk 0:00:36.5]} 51.
Kf3 {[%clk 0:00:10.2]} 51... Rxf4+ {[%clk 0:00:37.4]} 52. Kxf4 {[%clk
0:00:11.1]} 52... Kd6 {[%clk 0:00:29.2]} 53. h4 {[%clk 0:00:11.3]} 53... h6
{[%clk 0:00:24.7]} 54. Ke4 {[%clk 0:00:06.7]} 54... Ke6 {[%clk 0:00:24.7]} 55.
Kf4 {[%clk 0:00:05.8]} 55... Kd6 {[%clk 0:00:23.6]} 56. Ke4 {[%clk 0:00:04.1]}
56... Ke6 {[%clk 0:00:24]} 57. Kf4 {[%clk 0:00:04.3]} 57... Kd5 {[%clk
0:00:24.7]} 58. Kf3 {[%clk 0:00:03.5]} 58... Ke5 {[%clk 0:00:23.1]} 59. Ke3
{[%clk 0:00:03.7]} 59... Kf5 {[%clk 0:00:21.2]} 60. Kf3 {[%clk 0:00:04.1]} 60...
h5 {[%clk 0:00:18.6]} 0-1